[Event "Late-Titled-Tuesday-Blitz-January-23-2024"]
[Site "Chess.com"]
[Date "2024.01.23"]
[Round "5"]
[White "Smile2005"]
[Black "RamyresCoelho"]
[Result "1/2-1/2"]
[WhiteElo "2432"]
[BlackElo "2265"]
[TimeControl "180+1"]
[EndTime "14:57:23 PST"]
[Termination "Game drawn by 50-move rule"]

1. e4 {[%clk 0:03:00.9]} 1... c5 {[%clk 0:02:59.6]} 2. Nf3 {[%clk 0:03:00.4]}
2... d6 {[%clk 0:02:59.8]} 3. Bb5+ {[%clk 0:03:00.5]} 3... Nd7 {[%clk
0:02:59.7]} 4. a4 {[%clk 0:02:43.4]} 4... a6 {[%clk 0:02:59]} 5. Be2 {[%clk
0:02:40.8]} 5... Ngf6 {[%clk 0:02:58.7]} 6. Nc3 {[%clk 0:02:40.7]} 6... g6
{[%clk 0:02:56.7]} 7. O-O {[%clk 0:02:38.7]} 7... Bg7 {[%clk 0:02:56.9]} 8. a5
{[%clk 0:02:37.2]} 8... O-O {[%clk 0:02:55.8]} 9. d3 {[%clk 0:02:37.5]} 9... e5
{[%clk 0:02:55.5]} 10. h3 {[%clk 0:02:20]} 10... b6 {[%clk 0:02:55]} 11. axb6
{[%clk 0:02:16.7]} 11... Qxb6 {[%clk 0:02:55.9]} 12. Kh1 {[%clk 0:02:17]} 12...
Bb7 {[%clk 0:02:51.7]} 13. Nd2 {[%clk 0:02:16.3]} 13... d5 {[%clk 0:02:47.6]}
14. exd5 {[%clk 0:02:12.8]} 14... Nxd5 {[%clk 0:02:48.5]} 15. Nc4 {[%clk
0:02:11.4]} 15... Qe6 {[%clk 0:02:36.6]} 16. Bf3 {[%clk 0:02:01.5]} 16... Nxc3
{[%clk 0:02:34.3]} 17. bxc3 {[%clk 0:02:00.1]} 17... e4 {[%clk 0:02:25.3]} 18.
Bxe4 {[%clk 0:01:38]} 18... Bxe4 {[%clk 0:02:21.8]} 19. dxe4 {[%clk 0:01:38.1]}
19... Qxc4 {[%clk 0:02:21.4]} 20. Be3 {[%clk 0:01:28.7]} 20... Qe6 {[%clk
0:02:15]} 21. Ra5 {[%clk 0:01:27.7]} 21... Bxc3 {[%clk 0:02:13.3]} 22. Ra4
{[%clk 0:01:24.8]} 22... a5 {[%clk 0:02:07.2]} 23. Qd3 {[%clk 0:01:22.7]} 23...
Bd4 {[%clk 0:02:01.4]} 24. Bxd4 {[%clk 0:01:22.2]} 24... cxd4 {[%clk 0:02:02.3]}
25. Rxd4 {[%clk 0:01:22.1]} 25... Ne5 {[%clk 0:01:51.6]} 26. Qb5 {[%clk
0:01:16.9]} 26... Qa6 {[%clk 0:01:36.9]} 27. Qxa6 {[%clk 0:01:13.4]} 27... Rxa6
{[%clk 0:01:37.8]} 28. Ra1 {[%clk 0:01:12.6]} 28... Rfa8 {[%clk 0:01:36.1]} 29.
Raa4 {[%clk 0:01:09.8]} 29... Nc6 {[%clk 0:01:35.1]} 30. Rdc4 {[%clk 0:01:04.1]}
30... Kf8 {[%clk 0:01:31.7]} 31. f4 {[%clk 0:01:03.1]} 31... Ke7 {[%clk
0:01:31.3]} 32. e5 {[%clk 0:01:02.2]} 32... Ke6 {[%clk 0:01:26.8]} 33. Rc5
{[%clk 0:01:00.1]} 33... h5 {[%clk 0:01:25.1]} 34. g4 {[%clk 0:00:59.9]} 34...
hxg4 {[%clk 0:01:24.8]} 35. hxg4 {[%clk 0:01:00.8]} 35... Rh8+ {[%clk 0:01:19]}
36. Kg2 {[%clk 0:01:00.6]} 36... Rd8 {[%clk 0:01:10.7]} 37. Kf3 {[%clk
0:00:58.1]} 37... Rd2 {[%clk 0:01:03.8]} 38. Ke4 {[%clk 0:00:49.3]} 38... Re2+
{[%clk 0:00:56.4]} 39. Kf3 {[%clk 0:00:48.9]} 39... Rxc2 {[%clk 0:00:50.8]} 40.
Rxc2 {[%clk 0:00:46.8]} 40... g5 {[%clk 0:00:47.9]} 41. Ke4 {[%clk 0:00:36.2]}
41... gxf4 {[%clk 0:00:47.1]} 42. Kxf4 {[%clk 0:00:35.6]} 42... Nxe5 {[%clk
0:00:45.9]} 43. Re2 {[%clk 0:00:34.5]} 43... f6 {[%clk 0:00:44.4]} 44. g5 {[%clk
0:00:34.1]} 44... fxg5+ {[%clk 0:00:39.8]} 45. Kxg5 {[%clk 0:00:33.8]} 45... Kd5
{[%clk 0:00:39.3]} 46. Kf5 {[%clk 0:00:32.3]} 46... Nc4 {[%clk 0:00:34.9]} 47.
Kg5 {[%clk 0:00:20.4]} 47... Ra8 {[%clk 0:00:26.4]} 48. Re7 {[%clk 0:00:19.6]}
48... Rg8+ {[%clk 0:00:25.7]} 49. Kf4 {[%clk 0:00:19.4]} 49... Rf8+ {[%clk
0:00:25.1]} 50. Kg3 {[%clk 0:00:19.6]} 50... Rg8+ {[%clk 0:00:24.4]} 51. Kf2
{[%clk 0:00:19.9]} 51... Rf8+ {[%clk 0:00:23.9]} 52. Ke2 {[%clk 0:00:20.2]}
52... Rd8 {[%clk 0:00:21.1]} 53. Rh7 {[%clk 0:00:19.3]} 53... Re8+ {[%clk
0:00:21]} 54. Kd1 {[%clk 0:00:19.2]} 54... Rd8 {[%clk 0:00:19.6]} 55. Rh5+
{[%clk 0:00:18]} 55... Kc6+ {[%clk 0:00:14.5]} 56. Kc1 {[%clk 0:00:18.4]} 56...
Rd4 {[%clk 0:00:13.3]} 57. Rhxa5 {[%clk 0:00:17]} 57... Nxa5 {[%clk 0:00:12]}
58. Rxa5 {[%clk 0:00:17.2]} 58... Rc4+ {[%clk 0:00:11.8]} 59. Kd2 {[%clk
0:00:17.1]} 59... Rc5 {[%clk 0:00:12.7]} 60. Ra8 {[%clk 0:00:17]} 60... Kb5
{[%clk 0:00:12.3]} 61. Rb8+ {[%clk 0:00:16.8]} 61... Kc6 {[%clk 0:00:13]} 62.
Rh8 {[%clk 0:00:17.7]} 62... Kd6 {[%clk 0:00:13.1]} 63. Ke3 {[%clk 0:00:18.3]}
63... Kc6 {[%clk 0:00:14]} 64. Ke4 {[%clk 0:00:18.5]} 64... Rc4+ {[%clk
0:00:14.1]} 65. Kd3 {[%clk 0:00:18.9]} 65... Rg4 {[%clk 0:00:14]} 66. Rh6+
{[%clk 0:00:19.8]} 66... Kd5 {[%clk 0:00:14.1]} 67. Ke3 {[%clk 0:00:20.2]} 67...
Re4+ {[%clk 0:00:13.9]} 68. Kf3 {[%clk 0:00:20.6]} 68... Rb4 {[%clk 0:00:14.8]}
69. Rh5+ {[%clk 0:00:20.8]} 69... Kd6 {[%clk 0:00:15.1]} 70. Rh6+ {[%clk
0:00:21]} 70... Kd5 {[%clk 0:00:15.5]} 71. Rh8 {[%clk 0:00:21.9]} 71... Kd6
{[%clk 0:00:15.8]} 72. Ke3 {[%clk 0:00:22]} 72... Rb3+ {[%clk 0:00:15.7]} 73.
Kd4 {[%clk 0:00:22.6]} 73... Rb6 {[%clk 0:00:16.6]} 74. Kc3 {[%clk 0:00:23.5]}
74... Rc6+ {[%clk 0:00:16.7]} 75. Kd4 {[%clk 0:00:23.9]} 75... Rc7 {[%clk
0:00:17.6]} 76. Rh6+ {[%clk 0:00:24.3]} 76... Kd7 {[%clk 0:00:17.9]} 77. Kd5
{[%clk 0:00:24.9]} 77... Rc1 {[%clk 0:00:16.6]} 78. Rh7+ {[%clk 0:00:25.8]}
78... Ke8 {[%clk 0:00:15.7]} 79. Rh8+ {[%clk 0:00:26.2]} 79... Kf7 {[%clk
0:00:15.7]} 80. Rh7+ {[%clk 0:00:27.1]} 80... Kg6 {[%clk 0:00:15.7]} 81. Rb7
{[%clk 0:00:28]} 81... Rd1+ {[%clk 0:00:15.7]} 82. Ke4 {[%clk 0:00:28.6]} 82...
Rc1 {[%clk 0:00:16.6]} 83. Rb6+ {[%clk 0:00:28.3]} 83... Kg5 {[%clk 0:00:16.9]}
84. Kd3 {[%clk 0:00:29.1]} 84... Rd1+ {[%clk 0:00:16.9]} 85. Ke2 {[%clk
0:00:25.4]} 85... Rd8 {[%clk 0:00:17.8]} 86. Rb7 {[%clk 0:00:25.2]} 86... Rd5
{[%clk 0:00:17.4]} 87. Kf3 {[%clk 0:00:25.5]} 87... Rf5+ {[%clk 0:00:17.4]} 88.
Kg3 {[%clk 0:00:25.5]} 88... Kg6 {[%clk 0:00:17.2]} 89. Rb6+ {[%clk 0:00:25.6]}
89... Rf6 {[%clk 0:00:17.5]} 90. Rb4 {[%clk 0:00:25.7]} 90... Ra6 {[%clk
0:00:16.3]} 91. Kg4 {[%clk 0:00:26]} 91... Rf6 {[%clk 0:00:15.8]} 92. Rb5 {[%clk
0:00:26.2]} 92... Ra6 {[%clk 0:00:16]} 93. Rg5+ {[%clk 0:00:27.1]} 93... Kh6
{[%clk 0:00:16.1]} 94. Rf5 {[%clk 0:00:28]} 94... Rg6+ {[%clk 0:00:15.6]} 95.
Kh4 {[%clk 0:00:28]} 95... Ra6 {[%clk 0:00:14.8]} 96. Rh5+ {[%clk 0:00:28.9]}
96... Kg7 {[%clk 0:00:14.9]} 97. Rg5+ {[%clk 0:00:29.8]} 97... Kh7 {[%clk
0:00:15.1]} 98. Kh5 {[%clk 0:00:30.7]} 98... Kh8 {[%clk 0:00:14.8]} 99. Rb5
{[%clk 0:00:31.1]} 99... Ra8 {[%clk 0:00:13.6]} 100. Rb7 {[%clk 0:00:31.4]}
100... Re8 {[%clk 0:00:12.7]} 101. Kg6 {[%clk 0:00:31.2]} 101... Re6+ {[%clk
0:00:12.7]} 102. Kf7 {[%clk 0:00:31.4]} 102... Re1 {[%clk 0:00:12.5]} 103. Rb5
{[%clk 0:00:30.6]} 103... Rf1+ {[%clk 0:00:12.4]} 104. Kg6 {[%clk 0:00:30.9]}
104... Rg1+ {[%clk 0:00:12.6]} 105. Kh6 {[%clk 0:00:31.3]} 105... Rh1+ {[%clk
0:00:12.9]} 106. Kg6 {[%clk 0:00:31.8]} 106... Rg1+ {[%clk 0:00:13]} 107. Kf7
{[%clk 0:00:32.2]} 107... Rf1+ {[%clk 0:00:13.2]} 108. Ke6 {[%clk 0:00:32.6]}
1/2-1/2

[Event "Late-Titled-Tuesday-Blitz-January-23-2024"]
[Site "Chess.com"]
[Date "2024.01.23"]
[Round "5"]
[White "stasOR4ik"]
[Black "BardArtem"]
[Result "1/2-1/2"]
[WhiteElo "2412"]
[BlackElo "2786"]
[TimeControl "180+1"]
[EndTime "14:57:32 PST"]
[Termination "Game drawn by 50-move rule"]

1. e4 {[%clk 0:03:00.9]} 1... c5 {[%clk 0:02:53.7]} 2. c3 {[%clk 0:03:00.7]}
2... d5 {[%clk 0:02:53]} 3. exd5 {[%clk 0:03:00.7]} 3... Qxd5 {[%clk 0:02:52.1]}
4. Nf3 {[%clk 0:03:01.3]} 4... Nf6 {[%clk 0:02:50.4]} 5. d4 {[%clk 0:03:01.4]}
5... g6 {[%clk 0:02:50.6]} 6. dxc5 {[%clk 0:02:56.2]} 6... Qxd1+ {[%clk
0:02:45.2]} 7. Kxd1 {[%clk 0:02:57.1]} 7... Bg7 {[%clk 0:02:45.5]} 8. Nbd2
{[%clk 0:02:54.1]} 8... O-O {[%clk 0:02:38.3]} 9. Bc4 {[%clk 0:02:44.5]} 9...
Nbd7 {[%clk 0:02:34.8]} 10. Nb3 {[%clk 0:02:43.7]} 10... Ng4 {[%clk 0:02:28.5]}
11. Ke2 {[%clk 0:02:41.4]} 11... Nge5 {[%clk 0:02:26.9]} 12. Bd5 {[%clk
0:02:34.1]} 12... Nxf3 {[%clk 0:02:21.2]} 13. Bxf3 {[%clk 0:02:32.9]} 13... Ne5
{[%clk 0:02:21.4]} 14. Bg5 {[%clk 0:02:27.2]} 14... Be6 {[%clk 0:02:20]} 15.
Rhd1 {[%clk 0:02:16.1]} 15... Bc4+ {[%clk 0:02:18.9]} 16. Ke3 {[%clk 0:02:14]}
16... h6 {[%clk 0:02:12.4]} 17. Bf4 {[%clk 0:02:04.9]} 17... Nxf3 {[%clk
0:02:08.8]} 18. Kxf3 {[%clk 0:02:04.2]} 18... e5 {[%clk 0:02:09.7]} 19. Be3
{[%clk 0:02:02.3]} 19... f5 {[%clk 0:02:08.7]} 20. g3 {[%clk 0:02:01.9]} 20...
f4 {[%clk 0:01:53.7]} 21. gxf4 {[%clk 0:02:01]} 21... exf4 {[%clk 0:01:51.7]}
22. Bd4 {[%clk 0:01:48.1]} 22... Rae8 {[%clk 0:01:48.9]} 23. Bxg7 {[%clk
0:01:40.9]} 23... Be2+ {[%clk 0:01:42.7]} 24. Kg2 {[%clk 0:01:38.6]} 24... f3+
{[%clk 0:01:42.9]} 25. Kg3 {[%clk 0:01:38.4]} 25... Rf5 {[%clk 0:01:33.8]} 26.
Bxh6 {[%clk 0:01:19.8]} 26... Bxd1 {[%clk 0:01:30.1]} 27. Rxd1 {[%clk
0:01:20.7]} 27... g5 {[%clk 0:01:26]} 28. Kg4 {[%clk 0:01:04.7]} 28... Ree5
{[%clk 0:01:14.4]} 29. Rd7 {[%clk 0:00:56.6]} 29... Rf4+ {[%clk 0:00:37.1]} 30.
Kg3 {[%clk 0:00:56.7]} 30... Ree4 {[%clk 0:00:37.4]} 31. Rg7+ {[%clk 0:00:43.8]}
31... Kh8 {[%clk 0:00:37.5]} 32. Rxg5 {[%clk 0:00:44]} 32... Kh7 {[%clk
0:00:34.3]} 33. Bg7 {[%clk 0:00:38.5]} 33... Rf7 {[%clk 0:00:34.4]} 34. Bd4
{[%clk 0:00:34.2]} 34... Re2 {[%clk 0:00:34.3]} 35. Nc1 {[%clk 0:00:20.2]} 35...
Rxb2 {[%clk 0:00:29.8]} 36. Nd3 {[%clk 0:00:20.3]} 36... Rxa2 {[%clk 0:00:28.4]}
37. Ne5 {[%clk 0:00:20.3]} 37... Rg7 {[%clk 0:00:28.8]} 38. Rxg7+ {[%clk
0:00:20]} 38... Kxg7 {[%clk 0:00:29.7]} 39. Nxf3+ {[%clk 0:00:20.1]} 39... Kf7
{[%clk 0:00:30.3]} 40. Kf4 {[%clk 0:00:20.5]} 40... Ke6 {[%clk 0:00:30.2]} 41.
Ke4 {[%clk 0:00:20.8]} 41... a5 {[%clk 0:00:30.2]} 42. h4 {[%clk 0:00:20]} 42...
a4 {[%clk 0:00:30.6]} 43. h5 {[%clk 0:00:18.8]} 43... a3 {[%clk 0:00:30.6]} 44.
h6 {[%clk 0:00:17.6]} 44... Re2+ {[%clk 0:00:31.1]} 45. Kd3 {[%clk 0:00:17.2]}
45... a2 {[%clk 0:00:26.8]} 46. c4 {[%clk 0:00:16.4]} 46... Rxf2 {[%clk
0:00:24.1]} 47. Bxf2 {[%clk 0:00:12.5]} 47... a1=Q {[%clk 0:00:23.9]} 48. Bd4
{[%clk 0:00:12.3]} 48... Qh1 {[%clk 0:00:21.1]} 49. Ng5+ {[%clk 0:00:09.9]}
49... Kf5 {[%clk 0:00:18.6]} 50. h7 {[%clk 0:00:10.4]} 50... Qd1+ {[%clk
0:00:15.3]} 51. Ke3 {[%clk 0:00:10]} 51... Qc1+ {[%clk 0:00:12.8]} 52. Ke2
{[%clk 0:00:07]} 52... Qxc4+ {[%clk 0:00:11.8]} 53. Ke3 {[%clk 0:00:07]} 53...
Qb3+ {[%clk 0:00:12]} 54. Kd2 {[%clk 0:00:06.7]} 54... Qb4+ {[%clk 0:00:11.4]}
55. Bc3 {[%clk 0:00:06.7]} 55... Qf4+ {[%clk 0:00:11.9]} 56. Kc2 {[%clk
0:00:06.2]} 56... Kxg5 {[%clk 0:00:04.6]} 57. h8=Q {[%clk 0:00:05.6]} 57... Qf2+
{[%clk 0:00:05.5]} 58. Kb3 {[%clk 0:00:05.3]} 58... Qxc5 {[%clk 0:00:06.4]} 59.
Qf6+ {[%clk 0:00:05.3]} 59... Kg4 {[%clk 0:00:06.5]} 60. Qg7+ {[%clk 0:00:04.9]}
60... Kf3 {[%clk 0:00:05.8]} 61. Qxb7+ {[%clk 0:00:05]} 61... Ke2 {[%clk
0:00:05.3]} 62. Qe4+ {[%clk 0:00:04.3]} 62... Kf1 {[%clk 0:00:02.6]} 63. Qd3+
{[%clk 0:00:03.9]} 63... Kg2 {[%clk 0:00:01.8]} 64. Qe4+ {[%clk 0:00:04.4]}
64... Kf1 {[%clk 0:00:02.1]} 65. Qf3+ {[%clk 0:00:04.1]} 65... Qf2 {[%clk
0:00:02.3]} 66. Qd3+ {[%clk 0:00:03.7]} 66... Qe2 {[%clk 0:00:02.3]} 67. Qf5+
{[%clk 0:00:03.6]} 67... Qf2 {[%clk 0:00:02.7]} 68. Qd5 {[%clk 0:00:03.4]} 68...
Qe2 {[%clk 0:00:02.4]} 69. Qh1+ {[%clk 0:00:03.3]} 69... Kf2 {[%clk 0:00:03]}
70. Bd4+ {[%clk 0:00:03.7]} 70... Kg3 {[%clk 0:00:03.3]} 71. Qg1+ {[%clk
0:00:03.9]} 71... Qg2 {[%clk 0:00:03.1]} 72. Be5+ {[%clk 0:00:04.1]} 72... Kf3
{[%clk 0:00:03]} 73. Qd1+ {[%clk 0:00:03.8]} 73... Qe2 {[%clk 0:00:03.5]} 74.
Qh1+ {[%clk 0:00:03.9]} 74... Kg4 {[%clk 0:00:02.2]} 75. Qg1+ {[%clk 0:00:03.8]}
75... Kf5 {[%clk 0:00:02]} 76. Bc3 {[%clk 0:00:04.6]} 76... Qb5+ {[%clk
0:00:02]} 77. Kc2 {[%clk 0:00:04.9]} 77... Qe2+ {[%clk 0:00:02]} 78. Kc1 {[%clk
0:00:04.9]} 78... Qc4 {[%clk 0:00:02.2]} 79. Qe3 {[%clk 0:00:04.9]} 79... Qf4
{[%clk 0:00:02.2]} 80. Kd2 {[%clk 0:00:04.8]} 80... Qd6+ {[%clk 0:00:01.9]} 81.
Kc2 {[%clk 0:00:03.8]} 81... Qc6 {[%clk 0:00:02.4]} 82. Qe5+ {[%clk 0:00:02.7]}
82... Kg4 {[%clk 0:00:02.5]} 83. Qd4+ {[%clk 0:00:02.5]} 83... Kf5 {[%clk
0:00:02.6]} 84. Qd3+ {[%clk 0:00:03]} 84... Ke6 {[%clk 0:00:02.2]} 85. Qe3+
{[%clk 0:00:03.2]} 85... Kd7 {[%clk 0:00:03.1]} 86. Qd4+ {[%clk 0:00:03.5]}
86... Kc8 {[%clk 0:00:03.6]} 87. Qg7 {[%clk 0:00:04]} 87... Qe4+ {[%clk
0:00:03]} 88. Kb3 {[%clk 0:00:04.3]} 88... Qc6 {[%clk 0:00:03.9]} 89. Kb4 {[%clk
0:00:04.6]} 89... Qb6+ {[%clk 0:00:03.2]} 90. Kc4 {[%clk 0:00:05.1]} 90... Qc6+
{[%clk 0:00:03.9]} 91. Kd3 {[%clk 0:00:05.4]} 91... Qd5+ {[%clk 0:00:04.5]} 92.
Kc2 {[%clk 0:00:06]} 92... Qa2+ {[%clk 0:00:04.7]} 93. Bb2 {[%clk 0:00:05.9]}
93... Qc4+ {[%clk 0:00:04.6]} 94. Kb1 {[%clk 0:00:06.5]} 94... Qf1+ {[%clk
0:00:04.7]} 95. Ka2 {[%clk 0:00:06.6]} 95... Qa6+ {[%clk 0:00:05.2]} 96. Kb3
{[%clk 0:00:06.8]} 96... Qb5+ {[%clk 0:00:05.7]} 97. Kc3 {[%clk 0:00:07.2]}
97... Qc5+ {[%clk 0:00:06.3]} 98. Kb3 {[%clk 0:00:07.6]} 98... Qb6+ {[%clk
0:00:06.2]} 99. Kc4 {[%clk 0:00:07.9]} 99... Qc6+ {[%clk 0:00:06.6]} 100. Kd4
{[%clk 0:00:08.3]} 100... Qd6+ {[%clk 0:00:06.5]} 101. Ke4 {[%clk 0:00:08.6]}
101... Qe6+ {[%clk 0:00:06.4]} 102. Be5 {[%clk 0:00:09.2]} 102... Qc4+ {[%clk
0:00:06.7]} 103. Kf5 {[%clk 0:00:09.7]} 103... Qf1+ {[%clk 0:00:06.9]} 104. Kg6
{[%clk 0:00:09.9]} 104... Qg2+ {[%clk 0:00:07]} 105. Kf7 {[%clk 0:00:10.4]}
105... Qd5+ {[%clk 0:00:07]} 106. Kf8 {[%clk 0:00:10.5]} 106... Qd8+ {[%clk
0:00:07.2]} 107. Kf7 {[%clk 0:00:10.5]} 107... Qd7+ {[%clk 0:00:07.6]} 108. Kg6
{[%clk 0:00:11.1]} 108... Qg4+ {[%clk 0:00:07.2]} 109. Kh7 {[%clk 0:00:11.2]}
109... Qh5+ {[%clk 0:00:07.3]} 110. Kg8 {[%clk 0:00:10.7]} 110... Qe8+ {[%clk
0:00:07.7]} 111. Kh7 {[%clk 0:00:11]} 1/2-1/2

[Event "Late-Titled-Tuesday-Blitz-January-23-2024"]
[Site "Chess.com"]
[Date "2024.01.23"]
[Round "6"]
[White "traviscottofficial"]
[Black "stasOR4ik"]
[Result "1-0"]
[WhiteElo "2533"]
[BlackElo "2407"]
[TimeControl "180+1"]
[EndTime "14:59:15 PST"]
[Termination "traviscottofficial won by resignation"]

1. e4 {[%clk 0:02:58.6]} 1... c6 {[%clk 0:02:45.1]} 2. f3 {[%clk 0:02:51.7]}
2... d5 {[%clk 0:02:46]} 3. d4 {[%clk 0:02:48.1]} 3... e5 {[%clk 0:02:46.9]} 4.
dxe5 {[%clk 0:02:46.3]} 4... dxe4 {[%clk 0:02:47.8]} 5. Qxd8+ {[%clk 0:02:45.6]}
5... Kxd8 {[%clk 0:02:45.9]} 6. Nc3 {[%clk 0:02:46.5]} 6... exf3 {[%clk
0:02:44.6]} 7. Nxf3 {[%clk 0:02:47.4]} 7... Nd7 {[%clk 0:02:44.6]} 8. Bc4 {[%clk
0:02:43.7]} 8... f6 {[%clk 0:02:44]} 9. Bf4 {[%clk 0:02:41.3]} 9... fxe5 {[%clk
0:02:43.3]} 10. Nxe5 {[%clk 0:02:40.5]} 10... Ngf6 {[%clk 0:02:40.4]} 11. Nf7+
{[%clk 0:02:39.9]} 11... Ke8 {[%clk 0:02:40.9]} 12. Nxh8 {[%clk 0:02:39.5]}
12... Bb4 {[%clk 0:02:41.6]} 13. O-O-O {[%clk 0:02:37.5]} 13... Nb6 {[%clk
0:02:41.5]} 14. Rhe1+ {[%clk 0:02:36.9]} 14... Kf8 {[%clk 0:02:41.1]} 15. Rd8+
{[%clk 0:02:35.6]} 1-0

[Event "Late-Titled-Tuesday-Blitz-January-23-2024"]
[Site "Chess.com"]
[Date "2024.01.23"]
[Round "6"]
[White "howitzer14"]
[Black "finec2"]
[Result "1-0"]
[WhiteElo "2953"]
[BlackElo "2198"]
[TimeControl "180+1"]
[EndTime "15:00:40 PST"]
[Termination "howitzer14 won by resignation"]

1. d4 {[%clk 0:03:00.9]} 1... Nf6 {[%clk 0:02:59.4]} 2. c4 {[%clk 0:03:01]} 2...
g6 {[%clk 0:02:59.6]} 3. Nc3 {[%clk 0:02:59.4]} 3... Bg7 {[%clk 0:03:00.1]} 4.
e4 {[%clk 0:02:59.8]} 4... d6 {[%clk 0:03:00.2]} 5. Bd3 {[%clk 0:02:55.2]} 5...
O-O {[%clk 0:02:59.4]} 6. Nge2 {[%clk 0:02:55.8]} 6... c5 {[%clk 0:02:59]} 7. d5
{[%clk 0:02:45.6]} 7... e6 {[%clk 0:02:58.2]} 8. O-O {[%clk 0:02:43.4]} 8...
exd5 {[%clk 0:02:57.2]} 9. exd5 {[%clk 0:02:39.4]} 9... Re8 {[%clk 0:02:57.2]}
10. h3 {[%clk 0:02:36]} 10... h6 {[%clk 0:02:48.9]} 11. Bf4 {[%clk 0:02:30]}
11... a6 {[%clk 0:02:42.1]} 12. Qd2 {[%clk 0:02:28.9]} 12... Kh7 {[%clk
0:02:41.6]} 13. Rae1 {[%clk 0:02:25.8]} 13... Qe7 {[%clk 0:02:33.6]} 14. Ng3
{[%clk 0:02:19.1]} 14... Qf8 {[%clk 0:02:32.9]} 15. Nce4 {[%clk 0:01:54.2]}
15... Nxe4 {[%clk 0:02:31.9]} 16. Nxe4 {[%clk 0:01:55.1]} 16... Be5 {[%clk
0:02:30.7]} 17. Bxe5 {[%clk 0:01:41.1]} 17... Rxe5 {[%clk 0:02:31.6]} 18. f4
{[%clk 0:01:39.5]} 18... Re8 {[%clk 0:02:25]} 19. Nf6+ {[%clk 0:01:39.2]} 1-0

[Event "Late-Titled-Tuesday-Blitz-January-23-2024"]
[Site "Chess.com"]
[Date "2024.01.23"]
[Round "6"]
[White "DanylaBagrov"]
[Black "underthebridge1999"]
[Result "1-0"]
[WhiteElo "2529"]
[BlackElo "2366"]
[TimeControl "180+1"]
[EndTime "15:01:11 PST"]
[Termination "DanylaBagrov won by resignation"]

1. d4 {[%clk 0:03:00.9]} 1... d5 {[%clk 0:02:52.9]} 2. Bf4 {[%clk 0:03:01.5]}
2... Nf6 {[%clk 0:02:52.6]} 3. e3 {[%clk 0:03:01.9]} 3... Nbd7 {[%clk
0:02:51.1]} 4. Nf3 {[%clk 0:03:01.6]} 4... g6 {[%clk 0:02:51.2]} 5. Nbd2 {[%clk
0:03:01.2]} 5... Bg7 {[%clk 0:02:51.9]} 6. h3 {[%clk 0:03:00.7]} 6... O-O {[%clk
0:02:52.5]} 7. c4 {[%clk 0:03:01]} 7... dxc4 {[%clk 0:02:47.8]} 8. Bxc4 {[%clk
0:02:59.5]} 8... Nb6 {[%clk 0:02:47.7]} 9. Bb3 {[%clk 0:02:54.3]} 9... Nfd5
{[%clk 0:02:47.7]} 10. Bg3 {[%clk 0:02:53.4]} 10... c6 {[%clk 0:02:47.9]} 11.
O-O {[%clk 0:02:53.1]} 11... a6 {[%clk 0:02:48.2]} 12. Rc1 {[%clk 0:02:52.7]}
12... a5 {[%clk 0:02:48.5]} 13. a3 {[%clk 0:02:52.5]} 13... a4 {[%clk
0:02:46.6]} 14. Ba2 {[%clk 0:02:52.8]} 14... Be6 {[%clk 0:02:45.1]} 15. Ng5
{[%clk 0:02:51.4]} 15... Nxe3 {[%clk 0:02:29.3]} 16. Nxe6 {[%clk 0:02:48]} 16...
Nxd1 {[%clk 0:02:20.8]} 17. Nxd8 {[%clk 0:02:47.4]} 17... Nxb2 {[%clk
0:02:14.6]} 18. Nxb7 {[%clk 0:02:29.7]} 18... Bxd4 {[%clk 0:02:12.3]} 19. Rxc6
{[%clk 0:02:26.7]} 19... Nd3 {[%clk 0:02:09.3]} 20. Nf3 {[%clk 0:02:19]} 20...
Ra7 {[%clk 0:01:52.3]} 21. Nxd4 {[%clk 0:01:55.4]} 21... Rxb7 {[%clk 0:01:51.9]}
22. Rb1 {[%clk 0:01:56.1]} 1-0

[Event "Late-Titled-Tuesday-Blitz-January-23-2024"]
[Site "Chess.com"]
[Date "2024.01.23"]
[Round "6"]
[White "GoValya"]
[Black "maurovargas01"]
[Result "1-0"]
[WhiteElo "2291"]
[BlackElo "1836"]
[TimeControl "180+1"]
[EndTime "15:01:21 PST"]
[Termination "GoValya won by checkmate"]

1. d4 {[%clk 0:03:00.9]} 1... d5 {[%clk 0:02:56.5]} 2. g3 {[%clk 0:03:00.5]}
2... Nf6 {[%clk 0:02:54.9]} 3. Bg2 {[%clk 0:03:01]} 3... Nbd7 {[%clk 0:02:44]}
4. Nf3 {[%clk 0:03:01.5]} 4... b6 {[%clk 0:02:40.5]} 5. O-O {[%clk 0:03:01.4]}
5... Bb7 {[%clk 0:02:39.8]} 6. c4 {[%clk 0:03:00.3]} 6... dxc4 {[%clk 0:02:39]}
7. Nbd2 {[%clk 0:03:00.7]} 7... b5 {[%clk 0:02:36.4]} 8. a4 {[%clk 0:03:01]}
8... c6 {[%clk 0:02:33.4]} 9. e4 {[%clk 0:02:59.7]} 9... Qc7 {[%clk 0:02:27.4]}
10. Qe2 {[%clk 0:02:56.6]} 10... a6 {[%clk 0:02:26.7]} 11. e5 {[%clk 0:02:49]}
11... Nd5 {[%clk 0:02:19.7]} 12. e6 {[%clk 0:02:48.3]} 12... fxe6 {[%clk
0:02:14.4]} 13. Ne4 {[%clk 0:02:48.5]} 13... N7f6 {[%clk 0:01:53.7]} 14. Nc5
{[%clk 0:02:47.4]} 14... Qc8 {[%clk 0:01:39.5]} 15. Nxe6 {[%clk 0:02:44.4]}
15... g6 {[%clk 0:01:32.8]} 16. Bh3 {[%clk 0:02:36.3]} 16... Qb8 {[%clk
0:01:14.7]} 17. Re1 {[%clk 0:02:28.9]} 17... Kf7 {[%clk 0:01:09.4]} 18. Nfg5+
{[%clk 0:02:28.4]} 18... Kg8 {[%clk 0:01:05.8]} 19. Nc5 {[%clk 0:02:21.3]} 19...
h6 {[%clk 0:01:03.7]} 20. Qe6+ {[%clk 0:02:19.6]} 20... Kg7 {[%clk 0:01:04]} 21.
Qf7# {[%clk 0:02:19.4]} 1-0

[Event "Late-Titled-Tuesday-Blitz-January-23-2024"]
[Site "Chess.com"]
[Date "2024.01.23"]
[Round "6"]
[White "Arifarsky"]
[Black "colegiodemadrid"]
[Result "1-0"]
[WhiteElo "2696"]
[BlackElo "2506"]
[TimeControl "180+1"]
[EndTime "15:01:23 PST"]
[Termination "Arifarsky won by resignation"]

1. d4 {[%clk 0:03:00.9]} 1... d5 {[%clk 0:02:59.2]} 2. Nf3 {[%clk 0:03:01.1]}
2... e6 {[%clk 0:02:59.4]} 3. Bf4 {[%clk 0:03:00.6]} 3... Bd6 {[%clk 0:02:58.4]}
4. Bg3 {[%clk 0:02:59.8]} 4... Nf6 {[%clk 0:02:58.2]} 5. e3 {[%clk 0:03:00]}
5... b6 {[%clk 0:02:58.8]} 6. Nbd2 {[%clk 0:03:00.2]} 6... O-O {[%clk
0:02:58.5]} 7. Bd3 {[%clk 0:03:00.7]} 7... Ba6 {[%clk 0:02:58.3]} 8. Bxa6 {[%clk
0:03:00.7]} 8... Nxa6 {[%clk 0:02:59.2]} 9. Qe2 {[%clk 0:03:01.3]} 9... Nb8
{[%clk 0:02:58.7]} 10. Ne5 {[%clk 0:03:00.8]} 10... c5 {[%clk 0:02:58.1]} 11. c3
{[%clk 0:03:00.5]} 11... Qc7 {[%clk 0:02:58.1]} 12. O-O {[%clk 0:02:58.7]} 12...
Nfd7 {[%clk 0:02:58.6]} 13. f4 {[%clk 0:02:57.4]} 13... Nf6 {[%clk 0:02:57.3]}
14. f5 {[%clk 0:02:51.2]} 14... exf5 {[%clk 0:02:55]} 15. Rxf5 {[%clk
0:02:52.1]} 15... Nbd7 {[%clk 0:02:55.3]} 16. Raf1 {[%clk 0:02:24]} 16... Rae8
{[%clk 0:02:54.3]} 17. Nxd7 {[%clk 0:02:06.5]} 17... Nxd7 {[%clk 0:02:53.1]} 18.
Rxd5 {[%clk 0:01:56.2]} 18... Bxg3 {[%clk 0:02:52.2]} 19. hxg3 {[%clk
0:01:57.1]} 19... Nf6 {[%clk 0:02:43]} 20. Rg5 {[%clk 0:01:42.3]} 20... cxd4
{[%clk 0:02:41.1]} 21. Rxf6 {[%clk 0:01:29.5]} 21... Rxe3 {[%clk 0:02:40.4]} 22.
Qg4 {[%clk 0:01:24.3]} 22... g6 {[%clk 0:02:34]} 23. Qxd4 {[%clk 0:01:18]} 23...
Rxg3 {[%clk 0:02:33.2]} 24. Rxg3 {[%clk 0:01:16.8]} 24... Qxg3 {[%clk
0:02:34.1]} 25. Ne4 {[%clk 0:01:17.3]} 25... Qe1+ {[%clk 0:02:31.1]} 26. Rf1
{[%clk 0:01:17.2]} 26... Qe2 {[%clk 0:02:29.9]} 27. Nf6+ {[%clk 0:01:14.8]} 1-0